{"text_format":"3","workbook":"xlsx","n_sheets":2,"sheets":["list","data"],"not_rendered":{"external_links":1},"read":"whole","date_system":"1900"}

{"sheet":"list","index":0,"n_rows":12,"n_cols":17,"rows_kept":12}
["№","СНИЛС","Фамлия","Имя","Отчество","Пол","Дата рождения","Участник с ОВЗ","Класс","Класс участия","Балл","Макс. Балл","Статус","Призер МЭ прошлого года","Учитель","Место работы учителя","Направление, вид практики  по технологии"]
[1,2,3,4,5,6,7,8,9,10,11,12,13,14,15,16,17]
[1,{"$f":"[1]list!B38","v":16493076692},{"$f":"[1]list!C38","v":"Савельева"},{"$f":"[1]list!D38","v":"Кристина"},{"$f":"[1]list!E38","v":"Сергеевна"},{"$f":"[1]list!F38","v":"Ж"},{"$f":"[1]list!G38","v":40627},{"$f":"[1]list!H38","v":"нет"},{"$f":"[1]list!I38","v":6},6,8,30,"участник",null,"Сагдиева Роза Гайсаровна","МБОУ \"СОШ №2\""]
[2,{"$f":"[1]list!B115","v":16706232864},{"$f":"[1]list!C115","v":"Гайнетдинова"},{"$f":"[1]list!D115","v":"Зиля"},{"$f":"[1]list!E115","v":"Мирзарифовна"},{"$f":"[1]list!F115","v":"Ж"},{"$f":"[1]list!G115","v":"2011-06-16"},{"$f":"[1]list!H115","v":"нет"},{"$f":"[1]list!I115","v":6},6,9,30,"участник",null,"Сагдиева Роза Гайсаровна","МБОУ \"СОШ №2\""]
[3,{"$f":"[1]list!B27","v":16588050801},{"$f":"[1]list!C27","v":"Гараев"},{"$f":"[1]list!D27","v":"Фанзиль"},{"$f":"[1]list!E27","v":"Фангизович"},{"$f":"[1]list!F27","v":"М"},{"$f":"[1]list!G27","v":40668},{"$f":"[1]list!H27","v":"нет"},{"$f":"[1]list!I27","v":6},6,8,30,"участник",null,"Сагдиева Роза Гайсаровна","МБОУ \"СОШ №2\""]
[4,{"$f":"[1]list!B32","v":16802108143},{"$f":"[1]list!C32","v":"Искаков"},{"$f":"[1]list!D32","v":"Амир"},{"$f":"[1]list!E32","v":"Русланович"},{"$f":"[1]list!F32","v":"М"},{"$f":"[1]list!G32","v":40772},{"$f":"[1]list!H32","v":"нет"},{"$f":"[1]list!I32","v":6},6,8,30,"участник",null,"Сагдиева Роза Гайсаровна","МБОУ \"СОШ №2\""]
[5,{"$f":"[1]list!B36","v":16734535284},{"$f":"[1]list!C36","v":"Мусина"},{"$f":"[1]list!D36","v":"Айгуль"},{"$f":"[1]list!E36","v":"Газинуровна"},{"$f":"[1]list!F36","v":"Ж"},{"$f":"[1]list!G36","v":40630},{"$f":"[1]list!H36","v":"нет"},{"$f":"[1]list!I36","v":6},6,5,30,"участник",null,"Сагдиева Роза Гайсаровна","МБОУ \"СОШ №2\""]
[6,{"$f":"[1]list!B118","v":16441080037},{"$f":"[1]list!C118","v":"Гильмутдинов"},{"$f":"[1]list!D118","v":"Фазыл"},{"$f":"[1]list!E118","v":"Ильдарович"},{"$f":"[1]list!F118","v":"М"},{"$f":"[1]list!G118","v":"2011-01-17"},{"$f":"[1]list!H118","v":"нет"},{"$f":"[1]list!I118","v":6},6,6,30,"участник",null,"Сагдиева Роза Гайсаровна","МБОУ \"СОШ №2\""]
[6,{"$f":"[1]list!B119","v":16385754000},{"$f":"[1]list!C119","v":"Егоров"},{"$f":"[1]list!D119","v":"Игорь"},{"$f":"[1]list!E119","v":"Алексеевич"},{"$f":"[1]list!F119","v":"М"},{"$f":"[1]list!G119","v":"2010-12-06"},{"$f":"[1]list!H119","v":"нет"},{"$f":"[1]list!I119","v":6},6,7,30,"участник",null,"Сагдиева Роза Гайсаровна","МБОУ \"СОШ №2\""]
[7,{"$f":"[1]list!B123","v":16311815740},{"$f":"[1]list!C123","v":"Зиганшина"},{"$f":"[1]list!D123","v":"Амира"},{"$f":"[1]list!E123","v":"Айдаровна"},{"$f":"[1]list!F123","v":"Ж"},{"$f":"[1]list!G123","v":"2010-11-16"},{"$f":"[1]list!H123","v":"нет"},{"$f":"[1]list!I123","v":6},6,8,30,"участник",null,"Сагдиева Роза Гайсаровна","МБОУ \"СОШ №2\""]
[8,{"$f":"[1]list!B127","v":16530838571},{"$f":"[1]list!C127","v":"Салахов"},{"$f":"[1]list!D127","v":"Самир"},{"$f":"[1]list!E127","v":"Руфатович"},{"$f":"[1]list!F127","v":"М"},{"$f":"[1]list!G127","v":"2011-03-09"},{"$f":"[1]list!H127","v":"нет"},{"$f":"[1]list!I127","v":6},6,6,30,"участник",null,"Сагдиева Роза Гайсаровна","МБОУ \"СОШ №2\""]
[9,{"$f":"[1]list!B128","v":16502116323},{"$f":"[1]list!C128","v":"Саматова"},{"$f":"[1]list!D128","v":"Элина"},{"$f":"[1]list!E128","v":"Ильнаровна"},{"$f":"[1]list!F128","v":"Ж"},{"$f":"[1]list!G128","v":"2011-02-28"},{"$f":"[1]list!H128","v":"нет"},{"$f":"[1]list!I128","v":6},6,6,30,"участник",null,"Сагдиева Роза Гайсаровна","МБОУ \"СОШ №2\""]

{"sheet":"data","index":1,"n_rows":25,"n_cols":3,"rows_kept":25,"hidden":true}
[]
["Техника, технология и техническое творчество .  Ручная обработка древесины"]
["Техника, технология и техническое творчество .  Ручная обработка металла"]
["Техника, технология и техническое творчество .  Механическая обработка древесины"]
["Техника, технология и техническое творчество .  Механическая обработка металла"]
["Техника, технология и техническое творчество .  Электротехника"]
["Техника, технология и техническое творчество .  Робототехника"]
["Техника, технология и техническое творчество .  3d - моделирование и печать"]
["Техника, технология и техническое творчество .  Обработка материалов на лазерно-гравировальной машине"]
["Техника, технология и техническое творчество .  Промышленный дизайн"]
["Культура дома, дизайн и технологии .  Обработка швейного изделия или узла + моделирование швейных изделий"]
["Культура дома, дизайн и технологии .  Обработка швейного изделия или узла + моделирование швейных изделий с использованием графических редакторов"]
["Культура дома, дизайн и технологии .  Обработка швейного изделия или узла на швейно-вышивальном оборудовании + моделирование швейных изделий"]
["Культура дома, дизайн и технологии .  Обработка швейного изделия или узла на швейно-вышивальном оборудовании + моделирование швейных изделий с использованием графических редакторов"]
["Культура дома, дизайн и технологии .  Робототехника"]
["Культура дома, дизайн и технологии .  3d - моделирование и печать"]
["Культура дома, дизайн и технологии .  Обработка материалов на лазерно-гравировальной машине"]
["Культура дома, дизайн и технологии .  Промышленный дизайн"]
["Роботехника .  "]
["Информационная безопасность ."]
[]
[]
["участник"]
["призер",null,"да"]
["победитель"]